fUST/lending_fUST_20251222
["ID","MTS","AMOUNT","RATE_DAILY","PERIOD"]
[399464713,1766380239696,-306.0,0.00017556,2]
[399464714,1766380239706,-326.0,0.00017581,2]
[399464715,1766380239715,-326.0,0.00017595,2]
[399464716,1766380239726,-20000.0,0.00017614,2]
[399464717,1766380239735,-1000.0,0.00017614,2]
[399464719,1766380239746,-1000.0,0.00017614,2]
[399464721,1766380239755,-1000.0,0.00017614,2]
[399464723,1766380239764,-1000.0,0.00017614,2]
[399464725,1766380239776,-1000.0,0.00017614,2]
[399464727,1766380239785,-1000.0,0.00017614,2]
[399464729,1766380239795,-1000.0,0.00017614,2]
[399464731,1766380239804,-1000.0,0.00017614,2]
[399464733,1766380239814,-1000.0,0.00017614,2]
[399464735,1766380239823,-1000.0,0.00017614,2]
[399464737,1766380239832,-1000.0,0.00017614,2]
[399464739,1766380239842,-1000.0,0.00017614,2]
[399464741,1766380239852,-1000.0,0.00017614,2]
[399464743,1766380239861,-1000.0,0.00017614,2]
[399464745,1766380239872,-1000.0,0.00017614,2]
[399464747,1766380239882,-1000.0,0.00017614,2]
[399464749,1766380239891,-1000.0,0.00017614,2]
[399464751,1766380239900,-1000.0,0.00017614,2]
[399464753,1766380239910,-1000.0,0.00017614,2]
[399464755,1766380239919,-1000.0,0.00017614,2]
[399464757,1766380239928,-1559.46403134,0.00017744,2]
[399464758,1766380239938,-2000.0,0.00017774,7]
[399464759,1766380239947,-326.0,0.00017782,2]
[399464760,1766380239956,-1000.0,0.00017786,2]
[399464761,1766380239966,-326.0,0.00017793,2]
[399464762,1766380239975,-142857.16,0.000178,3]
[399464763,1766380239983,-326.0,0.00017963,2]
[399464764,1766380239992,-326.0,0.0001805,2]
[399464765,1766380240002,-960.0,0.000181,2]
[399464766,1766380240010,-1559.46403128,0.00018141,2]
[399464767,1766380240018,-326.0,0.00018143,2]
[399464768,1766380240027,-326.0,0.00018162,2]
[399464769,1766380240036,-319.47407264,0.00018184,2]
[399464770,1766380240045,-326.0,0.00018189,2]
[399464771,1766380240055,-164.692,0.00018257,2]
[399464772,1766380240065,-228.0,0.00018274,3]
[399464773,1766380240075,-35714.28,0.0001832,3]
[399464774,1766380240084,-326.0,0.00018321,2]
[399464775,1766380240093,-326.0,0.00018335,2]
[399464776,1766380240103,-326.0,0.00018422,2]
[399464777,1766380240112,-523.96763302,0.00018466,3]
[399464778,1766380240121,-424.23916024,0.00018466,3]
[399464779,1766380240130,-320.38733752,0.00018466,3]
[399464780,1766380240140,-416.0,0.00018496,2]
[399464781,1766380240149,-326.0,0.00018498,2]
[399464782,1766380240158,-1559.46403128,0.00018539,2]
[399464783,1766380240168,-2000.0,0.00018589,7]
[399464784,1766380240178,-326.0,0.00018619,2]
[399464785,1766380240187,-185.75762766,0.0001862,2]
[399464786,1766380240198,-334.36372978,0.0001862,2]
[399464787,1766380240208,-318.03547852,0.0001862,2]
[399464788,1766380240217,-594.4244085,0.0001862,2]
[399464789,1766380240229,-328.08550275,0.0001862,2]
[399464790,1766380240239,-363.46911831,0.0001862,2]
[399464791,1766380240248,-409.77646159,0.0001862,2]
[399464793,1766380240258,-737.59763087,0.0001862,2]
[399464794,1766380240267,-1311.2846771,0.0001862,2]
[399464796,1766380240277,-257.41032671,0.0001862,2]
[399464798,1766380240286,-463.33858808,0.0001862,2]
[399464800,1766380240296,-326.0,0.00018621,2]
[399464802,1766380240308,-1060.0,0.00018648,2]
[399464804,1766380240317,-326.0,0.00018713,2]
[399464806,1766380240326,-326.0,0.00018731,2]
[399464808,1766380240336,-777.76539999,0.00018794,2]
[399464810,1766380240346,-725.8969314,0.00018823,2]
[399464812,1766380240356,-326.0,0.00018869,2]
[399464814,1766380240365,-326.0,0.00018884,2]
[399464816,1766380240378,-326.0,0.00018885,2]
[399464818,1766380240395,-302.8183302,0.000189,2]
[399464820,1766380240404,-302.8183302,0.000189,2]
[399464822,1766380240414,-1559.46403128,0.00018936,2]
[399464824,1766380240423,-326.0,0.0001894,2]
[399464826,1766380240431,-2851.28317545,0.00018983,2]
[399464827,1766380240441,-1155.08897654,0.00018983,2]
[399464829,1766380240450,-326.0,0.00018993,2]
[399464830,1766380240459,-2048.88230797,0.00019047,2]
[399464831,1766380240468,-724.33363598,0.00019047,2]
[399464841,1766380243162,-2.20413088,0.00018856,2]
[399464871,1766381432207,-492.71,7.837e-05,2]
[399464918,1766381438037,-2134.18644641,7.837e-05,2]
[399465545,1766382039290,-200.0,8e-05,7]
[399465547,1766382295351,-5000.0,7.49e-05,2]
[399465548,1766382313261,0.01,7.49e-05,2]
[399465549,1766382313285,4999.99,7.49e-05,2]
[399465550,1766382361635,165.5803115,3.842e-05,2]
[399466433,1766383515146,2364.14,0.00014,30]
[399466482,1766383548079,-312.56991056,7.085e-05,2]
[399466483,1766383562985,-171.98193463,7.014e-05,2]
[399466485,1766383583411,-140.57519659,7.014e-05,2]
[399466486,1766383757968,-755.71404838,7.014e-05,2]
[399466487,1766383761083,-276.36947537,7.014e-05,2]
[399466488,1766383765034,-267.73366305,7.014e-05,2]
[399466489,1766383771756,-3700.1828132,7.014e-05,2]
[399466490,1766383790840,2599.6443736,7.014e-05,2]
[399466491,1766383790862,2400.3556264,7.014e-05,2]
[399466501,1766383832376,-1812.56450872,7.068e-05,2]
[399466502,1766383832436,-3187.43549128,7.068e-05,2]
[399466503,1766383832445,-150.0,7.139e-05,2]
[399466504,1766383832455,-521.0,7.139e-05,2]
[399466505,1766383832464,-471.77948768,7.23e-05,2]
[399466506,1766383832473,-300.0,7.72e-05,2]
[399466507,1766383832482,-300.0,7.72e-05,2]
[399466508,1766383832492,-300.0,7.72e-05,2]
[399466509,1766383832501,-984.0,7.72e-05,2]
[399466510,1766383832512,-154.89829231,7.722e-05,2]
[399466511,1766383832523,-728.9680831,7.852e-05,2]
[399466512,1766383832532,-676.04,8.927e-05,2]
[399466513,1766383832541,-177.0,9.139e-05,2]
[399466514,1766383832551,-1352.07,9.352e-05,2]
[399466515,1766383832560,-2028.11,9.777e-05,2]
[399466516,1766383832569,-253.48830531,9.996e-05,2]
[399466517,1766383832579,-3731.72023868,9.996e-05,2]
[399466519,1766383832590,-3731.72023868,9.996e-05,2]
[399466520,1766383832599,-3731.72023868,9.996e-05,2]
[399466522,1766383832608,-3731.72023868,9.996e-05,2]
[399466525,1766383832618,-2088.39279581,9.996e-05,2]
[399466527,1766383832630,-332.93679327,9.996e-05,2]
[399466529,1766383832640,-365.92800127,9.996e-05,2]
[399466584,1766383838388,-1380.46639223,7.642e-05,2]
[399466585,1766383838466,-2500.38270243,7.642e-05,2]
[399466586,1766383838477,-1119.15090534,7.642e-05,2]
[399466587,1766383838486,-315.24081177,7.719e-05,2]
[399466588,1766383838494,-500.0,7.719e-05,2]
[399466590,1766383838504,-439.03926352,7.719e-05,2]
[399466592,1766383838516,-500.0,7.719e-05,2]
[399466594,1766383838526,-500.0,7.719e-05,2]
[399466596,1766383838536,-500.0,7.719e-05,2]
[399466598,1766383838545,-500.0,7.719e-05,2]
[399466600,1766383838555,-500.0,7.719e-05,2]
[399466603,1766383838566,-500.0,7.719e-05,2]
[399466606,1766383838576,-500.0,7.719e-05,2]
[399466608,1766383838585,-293.93422047,7.719e-05,2]
[399466610,1766383838596,-500.0,7.719e-05,2]
[399466612,1766383838605,-500.0,7.719e-05,2]
[399466614,1766383838615,-170.77454085,9.725e-05,2]
[399466616,1766383838626,-514.3981551,9.996e-05,2]
[399466619,1766383838642,-430.06449323,9.996e-05,2]
[399466621,1766383838654,-3731.72023868,9.996e-05,2]
[399466622,1766383838664,-2241.68541995,9.996e-05,2]
[399466625,1766383838676,-1490.03481873,9.996e-05,2]
[399466627,1766383838685,-3731.72023868,9.996e-05,2]
[399466629,1766383838695,-3731.72023868,9.996e-05,2]
[399466631,1766383838704,-1237.38043258,9.996e-05,2]
[399466838,1766383840720,-3e-08,9.996e-05,2]
[399467193,1766383846655,-1708.55518027,9.996e-05,2]
[399467266,1766385038598,-5000.0,8.266e-05,2]
[399467268,1766385038607,-536.0,8.266e-05,2]
[399467270,1766385038617,-158.7416428,8.371e-05,2]
[399467272,1766385038626,-630.06,8.645e-05,2]
[399467274,1766385038635,-73.20707124,9.038e-05,2]
[399467277,1766385038646,-226.79292876,9.038e-05,2]
[399467279,1766385038655,-407.05622423,9.038e-05,2]
[399467281,1766385038663,-463.23263687,9.038e-05,2]
[399467483,1766385040828,-36.76736313,9.038e-05,2]
[399467485,1766385040838,-175.65883929,9.038e-05,2]
[399467487,1766385040847,-500.0,9.038e-05,2]
[399467489,1766385040857,-715.72693635,9.057e-05,2]
[399467491,1766385040870,-142.07738965,9.057e-05,2]
[399467725,1766385043655,-1118.03261035,9.057e-05,2]
[399467727,1766385043665,-177.44181372,9.143e-05,2]
[399467729,1766385043674,-2815.7108927,9.143e-05,2]
[399467734,1766385043715,-2531.06041965,9.143e-05,2]
[399467736,1766385043724,-5346.77131235,9.143e-05,2]
[399467738,1766385043733,-5346.77131235,9.143e-05,2]
[399467740,1766385043742,-5346.77131235,9.143e-05,2]
[399467742,1766385043751,-5346.77131235,9.143e-05,2]
[399467744,1766385043760,-5346.77131235,9.143e-05,2]
[399467746,1766385043769,-4552.9480346,9.143e-05,2]
[399467980,1766386232533,-562.06970368,8.266e-05,2]
[399467982,1766386232544,-264.547,8.266e-05,2]
[399468252,1766386240178,-4173.38329632,8.266e-05,2]
[399468254,1766386240188,-536.0,8.266e-05,2]
[399468256,1766386240198,-177.92089391,8.434e-05,2]
[399468258,1766386240207,-606.0,8.556e-05,2]
[399468260,1766386240216,-201.66851067,8.963e-05,2]
[399468262,1766386240227,-1212.0,8.964e-05,2]
[399468264,1766386240236,-1695.25968431,9.005e-05,2]
[399468265,1766386240245,-726.07882273,9.005e-05,2]
[399468268,1766386240259,-237.78714174,9.142e-05,2]
[399468269,1766386240268,-793.82327775,9.143e-05,2]
[399468271,1766386240278,-5346.77131235,9.143e-05,2]
[399468274,1766386240287,-1121.4904728,9.143e-05,2]
[399468304,1766386246058,-3095.50546303,9.143e-05,2]
[399468308,1766386712064,150.0,0.00015,120]
[399468309,1766386712964,150.0,0.00015,120]
[399468310,1766386713756,150.0,0.00015,120]
[399468311,1766386714992,150.0,0.00015,120]
[399468312,1766386715809,150.0,0.00015,120]
[399468313,1766386716962,150.0,0.00015,120]
[399468314,1766386717625,150.0,0.00015,120]
[399468315,1766386718451,150.0,0.00015,120]
[399468316,1766386719261,150.0,0.00015,120]
[399468317,1766386720510,150.0,0.00015,120]
[399468318,1766386721423,150.0,0.00015,120]
[399468319,1766386722176,150.0,0.00015,120]
[399468320,1766386723129,150.0,0.00015,120]
[399468328,1766387432124,-5000.0,8.295e-05,2]
[399468329,1766387432134,-536.0,8.295e-05,2]
[399468330,1766387432144,-177.5598354,8.379e-05,2]
[399468331,1766387432155,-242.81905114,8.601e-05,2]
[399468332,1766387432166,-340.04094886,8.601e-05,2]
[399468333,1766387432176,-53.39106665,9.011e-05,2]
[399468334,1766387432187,-612.13903081,9.011e-05,2]
[399468335,1766387432221,-500.18990254,9.011e-05,2]
[399468336,1766387432231,-1085.0,9.138e-05,2]
[399468337,1766387432240,-300.0,9.139e-05,2]
[399468338,1766387432250,-300.0,9.139e-05,2]
[399468339,1766387432259,-300.0,9.139e-05,2]
[399468340,1766387432269,-300.0,9.139e-05,2]
[399468341,1766387432278,-237.76,9.142e-05,2]
[399468342,1766387432288,-288.55530438,9.163e-05,3]
[399468343,1766387432297,-265.21532212,9.163e-05,3]
[399468344,1766387432306,-153.89291544,9.163e-05,2]
[399468345,1766387432316,-1072.90912256,9.184e-05,2]
[399468346,1766387432325,-27143.10766463,9.187e-05,2]
[399468347,1766387432336,-1123.02642622,9.187e-05,2]
[399468348,1766387432362,-1072.90912256,9.184e-05,2]
[399468349,1766387432371,-45586.17390554,9.187e-05,2]
[399468365,1766387438006,-498.8032675,9.184e-05,2]
[399468368,1766387438018,-310.26026925,9.184e-05,2]
[399468370,1766387438030,-263.84558581,9.184e-05,2]
[399468372,1766387438040,-1072.90912256,9.184e-05,2]
[399468374,1766387438050,-1072.90912256,9.184e-05,2]
[399468376,1766387438060,-995.12998152,9.184e-05,2]
[399468378,1766387438071,-77.77914104,9.184e-05,2]
[399468380,1766387438081,-1072.90912256,9.184e-05,2]
[399468382,1766387438090,-1072.90912256,9.184e-05,2]
[399468384,1766387438100,-1072.90912256,9.184e-05,2]
[399468386,1766387438109,-1072.90912256,9.184e-05,2]
[399468388,1766387438119,-1072.90912256,9.184e-05,2]
[399468390,1766387438128,-1072.90912256,9.184e-05,2]
[399468392,1766387438138,-1072.90912256,9.184e-05,2]
[399468394,1766387438147,-21447.43331918,9.187e-05,2]
[399468396,1766387438158,-4755.53932893,9.187e-05,2]
[399468398,1766387438168,-1012.20480937,9.187e-05,2]
[399468401,1766387438191,-871.88138123,9.187e-05,2]
[399468404,1766387438200,-1748.58,9.42e-05,2]
[399468405,1766387438210,-1333.21077203,9.533e-05,2]
[399468408,1766387438222,-940.29121662,9.533e-05,2]
[399468410,1766387438232,-2273.50198866,9.59e-05,2]
[399468412,1766387438242,-396.56444011,9.83e-05,2]
[399468414,1766387438253,-1210.44401502,9.83e-05,2]
[399468583,1766387440267,-359.50100004,9.83e-05,2]
[399468642,1766387443207,-364.93054483,9.83e-05,2]
[399468643,1766387443216,-286.43711396,9.996e-05,2]
[399468644,1766387443225,-327.35670167,9.996e-05,2]
[399468645,1766387443236,-27.64253248,9.996e-05,2]
[399468656,1766388046386,-200.0,0.00015,60]
[399468657,1766388048030,-200.0,0.00015,60]
[399468658,1766388049331,-200.0,0.00015,60]
[399468659,1766388050111,-200.0,0.00015,60]
[399468692,1766388632062,-5000.0,7.585e-05,2]
[399468694,1766388632072,-527.0,7.585e-05,2]
[399468696,1766388632081,-184.6286387,7.682e-05,2]
[399468698,1766388632091,-486.3647433,8.472e-05,2]
[399468700,1766388632103,-55.4052567,8.472e-05,2]
[399468702,1766388632112,-173.83843402,8.728e-05,2]
[399468704,1766388632121,-183.46878652,8.728e-05,2]
[399468715,1766388632220,-179.19695318,8.728e-05,2]
[399468716,1766388632230,-1083.54,8.876e-05,2]
[399468717,1766388632240,-294.72705762,9.174e-05,2]
[399468728,1766388638298,-5000.0,9.082e-05,2]
[399468729,1766388638307,-1586.17155548,9.174e-05,2]
[399468730,1766388638318,-1110.2908893,9.174e-05,2]
[399468731,1766388638328,-1420.29992564,9.174e-05,2]
[399468732,1766388638339,-1570.88957676,9.174e-05,2]
[399468733,1766388638349,-751.38223632,9.174e-05,2]
[399468734,1766388638364,-2239.80726608,9.174e-05,2]
[399468735,1766388638374,-2006.96676335,9.174e-05,2]
[399468736,1766388638385,-984.22273905,9.174e-05,2]
[399468737,1766388638395,-2991.1895024,9.174e-05,2]
[399468738,1766388638404,-631.44760095,9.174e-05,2]
[399468739,1766388638415,-2359.74190145,9.174e-05,2]
[399468741,1766388638425,-2991.1895024,9.174e-05,2]
[399468743,1766388638434,-183.1989638,9.174e-05,2]
[399468765,1766388958063,-5000.0,8.297e-05,2]
[399468766,1766388958092,-754.21,8.573e-05,2]
[399468767,1766388958120,-180.93606592,8.581e-05,2]
[399468768,1766388958156,-1508.42,8.982e-05,2]
[399468769,1766388958183,-176.7958546,9.187e-05,2]
[399468770,1766388958210,-318.23253827,9.187e-05,2]
[399468772,1766388974371,5000.0,9.2e-05,2]
[399468773,1766388997618,5000.0,9.2e-05,2]
[399468774,1766389008047,725.41,8.541e-05,2]
[399468775,1766389008438,1450.82,8.948e-05,2]
[399468776,1766389020825,5000.0,9.2e-05,2]
[399468777,1766389021120,16946.58108242,8.737e-05,2]
[399468778,1766389021501,-150.0,0.0001,7]
[399468779,1766389033831,-150.0,0.0001,7]
[399468780,1766389034770,-150.0,0.0001,7]
[399468781,1766389036549,-150.0,0.0001,7]
[399468783,1766389075632,-93.48219992,0.0001,7]
[399468784,1766389083392,1000.0,0.00014,30]
[399468849,1766389841014,-5000.0,8.331e-05,2]
[399468850,1766389841023,-537.0,8.331e-05,2]
[399468851,1766389841032,-203.08035513,8.395e-05,2]
[399468852,1766389841042,-300.0,8.736e-05,2]
[399468853,1766389841051,-2054.04367882,8.737e-05,2]
[399468868,1766390968551,299.86,9.762e-05,30]
[399468869,1766390968988,599.72,0.00010227,30]
[399468870,1766390969377,899.59,0.00010692,30]
[399468871,1766390969782,1199.45,0.00011157,30]
[399468872,1766390970299,179.08586919,0.00011622,30]
[399468873,1766390970321,1320.22413081,0.00011622,30]
[399468874,1766390970584,1799.17,0.00012087,30]
[399468875,1766390971133,2099.04,0.00012551,30]
[399468876,1766390971487,2398.9,0.00013016,30]
[399468877,1766390971813,2698.76,0.00013481,30]
[399468878,1766390972248,2998.62,0.00013946,30]
[399468905,1766391032347,-1405.89569252,7.399e-05,2]
[399468912,1766391032404,-453.21499874,7.399e-05,2]
[399468914,1766391032416,-1135.49575017,7.399e-05,2]
[399468956,1766391038695,-524.0,7.399e-05,2]
[399468957,1766391038705,-206.48440544,7.512e-05,2]
[399468958,1766391038715,-685.84350481,7.549e-05,2]
[399468976,1766391129229,212.36,9.401e-05,30]
[399468977,1766391129342,424.72,9.848e-05,30]
[399468978,1766391129787,637.07,0.00010296,30]
[399468979,1766391130224,849.43,0.00010744,30]
[399468980,1766391130641,1061.79,0.00011191,30]
[399468981,1766391131057,1274.15,0.00011639,30]
[399468982,1766391131460,1486.51,0.00012087,30]
[399468983,1766391131882,1698.87,0.00012534,30]
[399468984,1766391132293,1911.22,0.00012982,30]
[399468985,1766391132706,2123.57975916,0.0001343,30]
[399468992,1766391446672,10000.01,6.763e-05,2]
[399468993,1766391446695,4794.9404,6.763e-05,2]
[399468994,1766391695349,502.0,6.889e-05,2]
[399468996,1766391858039,-567.83675287,7.036e-05,2]
[399468997,1766391879422,-2421.62788244,7.036e-05,2]
[399468998,1766391889419,312.56991056,7.036e-05,2]
[399468999,1766391998991,10000.01,6.681e-05,2]
[399469000,1766391999015,2154.6921149,6.681e-05,2]
[399469023,1766392232537,-498.68910704,7.09e-05,2]
[399469024,1766392232546,-565.74673471,7.115e-05,2]
[399469025,1766392232556,-226.65783131,7.161e-05,2]
[399469026,1766392232566,-521.0,7.161e-05,2]
[399469027,1766392232575,-174.33899977,7.463e-05,2]
[399469028,1766392232585,-886.75999359,7.549e-05,2]
[399469029,1766392232594,-1041.86380346,7.567e-05,3]
[399469030,1766392232603,-999.24742259,7.762e-05,2]
[399469031,1766392232613,-688.0,7.762e-05,2]
[399469032,1766392232622,-300.0,7.762e-05,2]
[399469034,1766392232631,-50000.0,7.763e-05,2]
[399469037,1766392232640,-4542.46624865,7.763e-05,2]
[399469040,1766392232650,-4542.46624865,7.763e-05,2]
[399469042,1766392232660,-4542.46624865,7.763e-05,2]
[399469044,1766392232670,-4542.46624865,7.763e-05,2]
[399469046,1766392232680,-4542.46624865,7.763e-05,2]
[399469048,1766392232690,-4542.46624865,7.763e-05,2]
[399469050,1766392232699,-4693.88179028,7.763e-05,2]
[399469052,1766392232708,-4693.88179028,7.763e-05,2]
[399469054,1766392232719,-4693.88179028,7.763e-05,2]
[399469056,1766392232728,-4693.88179028,7.763e-05,2]
[399469058,1766392232739,-4693.88179028,7.763e-05,2]
[399469060,1766392232749,-4693.88179028,7.763e-05,2]
[399469062,1766392232758,-4693.88179028,7.763e-05,2]
[399469064,1766392232767,-4693.88179028,7.763e-05,2]
[399469066,1766392232777,-4693.88179028,7.763e-05,2]
[399469068,1766392232786,-4693.88179028,7.763e-05,2]
[399469070,1766392232796,-4693.88179028,7.763e-05,2]
[399469072,1766392232805,-4693.88179028,7.763e-05,2]
[399469074,1766392232815,-4693.88179028,7.763e-05,2]
[399469076,1766392232825,-4693.88179028,7.763e-05,2]
[399469078,1766392232835,-4693.88179028,7.763e-05,2]
[399469080,1766392232846,-4693.88179028,7.763e-05,2]
[399469082,1766392232860,-4693.88179028,7.763e-05,2]
[399469084,1766392232870,-4491.19144025,7.763e-05,2]
[399469086,1766392232880,-1395.25089715,7.763e-05,2]
[399469089,1766392232895,-1258.77916983,7.763e-05,2]
[399469091,1766392232907,-431.61562073,7.763e-05,2]
[399469093,1766392232919,-1371.92452659,7.763e-05,2]
[399469145,1766392238774,-33.62122595,7.763e-05,2]
[399469147,1766392238784,-1241.90893142,7.763e-05,2]
[399469149,1766392238796,-724.46984263,7.763e-05,2]
[399469370,1766392241109,-1000.0,7.763e-05,2]
[399469373,1766392241121,-1524.8126662,7.763e-05,2]
[399469374,1766392241131,-4491.19144025,7.763e-05,2]
[399469377,1766392241141,-4491.19144025,7.763e-05,2]
[399469378,1766392241150,-4491.19144025,7.763e-05,2]
[399469380,1766392241159,-152.68413503,7.767e-05,2]
[399469382,1766392241168,-21119.4807109,7.767e-05,2]
[399469385,1766392241179,-2321.9058278,7.836e-05,2]
[399469387,1766392241189,-306.98103608,8.219e-05,2]
[399469388,1766392241198,-500.0,8.219e-05,2]
[399469391,1766392241208,-500.0,8.219e-05,2]
[399469392,1766392241217,-150.0,8.219e-05,2]
[399469395,1766392241227,-150.0,8.219e-05,2]
[399469396,1766392241236,-375.7775887,8.22e-05,2]
[399469398,1766392241245,-375.7775887,8.22e-05,2]
[399469401,1766392241254,-375.7775887,8.22e-05,2]
[399469403,1766392241265,-378.7052266,8.22e-05,2]
[399469405,1766392241274,-375.7775887,8.22e-05,2]
[399469407,1766392241284,-751.3249673,8.22e-05,2]
[399469409,1766392241293,-500.0,8.272e-05,2]
[399469411,1766392241303,-150.0,8.272e-05,2]
[399469413,1766392241313,-500.0,8.272e-05,2]
[399469415,1766392241322,-150.0,8.272e-05,2]
[399469417,1766392241332,-500.0,8.272e-05,2]
[399469419,1766392241341,-500.0,8.272e-05,2]
[399469420,1766392241351,-500.0,8.272e-05,2]
[399469423,1766392241360,-500.0,8.272e-05,2]
[399469425,1766392241370,-500.0,8.272e-05,2]
[399469427,1766392241380,-150.0,8.272e-05,2]
[399469428,1766392241389,-150.0,8.272e-05,2]
[399469431,1766392241398,-265.13487194,8.28e-05,2]
[399469432,1766392241407,-375.7775887,8.28e-05,2]
[399469435,1766392241416,-500.0,8.356e-05,2]
[399469437,1766392241426,-500.0,8.356e-05,2]
[399469440,1766392241435,-209.43601465,8.356e-05,2]
[399469443,1766392241444,-150.0,8.356e-05,2]
[399469445,1766392241453,-514.33857592,8.385e-05,3]
[399469447,1766392241462,-500.0,8.409e-05,2]
[399469448,1766392241472,-150.0,8.409e-05,2]
[399469450,1766392241482,-500.0,8.409e-05,2]
[399469452,1766392241491,-150.0,8.409e-05,2]
[399469455,1766392241502,-500.0,8.409e-05,2]
[399469456,1766392241511,-500.0,8.409e-05,2]
[399469458,1766392241522,-500.0,8.409e-05,2]
[399469460,1766392241531,-500.0,8.409e-05,2]
[399469462,1766392241540,-500.0,8.409e-05,2]
[399469464,1766392241550,-150.0,8.409e-05,2]
[399469466,1766392241559,-150.0,8.409e-05,2]
[399469468,1766392241568,-2017.22338543,8.417e-05,2]
[399469470,1766392241577,-500.0,8.493e-05,2]
[399469473,1766392241587,-500.0,8.493e-05,2]
[399469474,1766392241596,-156.72880588,8.493e-05,2]
[399469476,1766392241606,-420.0,8.538e-05,2]
[399469479,1766392241616,-150.0,8.546e-05,2]
[399469481,1766392241625,-500.0,8.546e-05,2]
[399469482,1766392241636,-500.0,8.546e-05,2]
[399469484,1766392241647,-150.0,8.546e-05,2]
[399469486,1766392241656,-500.0,8.546e-05,2]
[399469488,1766392241665,-500.0,8.546e-05,2]
[399469491,1766392241674,-500.0,8.546e-05,2]
[399469492,1766392241683,-207.06661379,8.546e-05,2]
[399469494,1766392241692,-500.0,8.546e-05,2]
[399469496,1766392241701,-150.0,8.546e-05,2]
[399469499,1766392241711,-150.0,8.546e-05,2]
[399469501,1766392241720,-837.3716402,8.615e-05,2]
[399469502,1766392241729,-4211.22727737,8.615e-05,2]
[399469508,1766392241766,-18759.1691956,8.615e-05,2]
[399469766,1766392243937,-911.75,8.615e-05,2]
[399469778,1766392244042,-8853.44731773,8.615e-05,2]
[399469780,1766392244052,-500.0,8.63e-05,2]
[399469783,1766392244062,-575.24518356,8.63e-05,2]
[399469784,1766392244071,-751.3249673,8.63e-05,2]
[399469787,1766392244080,-150.0,8.683e-05,2]
[399469788,1766392244090,-500.0,8.683e-05,2]
[399469789,1766392244099,-500.0,8.683e-05,2]
[399469790,1766392244107,-150.0,8.683e-05,2]
[399469791,1766392244116,-500.0,8.683e-05,2]
[399469792,1766392244125,-500.0,8.683e-05,2]
[399469793,1766392244134,-500.0,8.683e-05,2]
[399469794,1766392244143,-157.9049439,8.683e-05,2]
[399469795,1766392244152,-150.0,8.683e-05,2]
[399469796,1766392244161,-358.77,8.693e-05,2]
[399469797,1766392244169,-370.84121572,8.715e-05,2]
[399469798,1766392244178,-1161.1368095,8.745e-05,2]
[399469799,1766392244187,-500.0,8.767e-05,2]
[399469800,1766392244196,-250.0,8.8e-05,2]
[399469801,1766392244205,-170.07897238,8.82e-05,2]
[399469802,1766392244214,-500.0,8.82e-05,2]
[399469803,1766392244223,-500.0,8.82e-05,2]
[399469804,1766392244232,-198.8715685,8.82e-05,2]
[399469805,1766392244241,-500.0,8.82e-05,2]
[399469806,1766392244250,-500.0,8.82e-05,2]
[399469807,1766392244258,-500.0,8.82e-05,2]
[399469808,1766392244268,-173.91045028,8.82e-05,2]
[399469809,1766392244277,-55.30978831,8.904e-05,2]
[399469810,1766392244288,-444.69021169,8.904e-05,2]
[399469811,1766392244297,-602.0,8.957e-05,2]
[399469813,1766392244307,-500.0,8.957e-05,2]
[399469815,1766392244316,-589.74685809,8.957e-05,2]
[399469817,1766392244325,-503.52194154,8.957e-05,2]
[399469819,1766392244335,-370.60437313,8.957e-05,2]
[399469821,1766392244344,-251.0734912,9e-05,2]
[399469823,1766392244353,-717.53,9.107e-05,2]
[399469825,1766392244362,-267.45624095,9.161e-05,2]
[399469826,1766392244372,-401.61630487,9.174e-05,2]
[399469829,1766392244383,-369.36279319,9.174e-05,2]
[399469831,1766392244398,-664.85302774,9.174e-05,2]
[399469833,1766392244412,-182.34392289,9.174e-05,2]
[399469835,1766392244422,-328.21906121,9.174e-05,2]
[399469836,1766392244431,-1181.9609382,9.174e-05,2]
[399469838,1766392244440,-583.50055326,9.174e-05,2]
[399469840,1766392244449,-316.45448751,9.174e-05,2]
[399469842,1766392244458,-361.66227144,9.174e-05,2]
[399469845,1766392244468,-156.49339643,9.174e-05,2]
[399469847,1766392244477,-281.68811358,9.174e-05,2]
[399469849,1766392244486,-150.5,9.294e-05,2]
[399469851,1766392244495,-587.0,9.392e-05,2]
[399469852,1766392244505,-837.3716402,9.489e-05,2]
[399469854,1766392244514,-1000.0,9.495e-05,2]
[399469856,1766392244523,-9702.40313411,9.495e-05,2]
[399469859,1766392244533,-1063.9634687,9.495e-05,2]